bitfinex/quotes_BTCUSD_20250418
["timestamp","ask_amount","ask_price","bid_price","bid_amount"]
[1744941804501,0.0495,84809.0,84806.0,0.09433294]
[1744941804710,0.0495,84809.0,84807.0,0.09433139]
[1744941805434,0.0495,84809.0,84808.0,0.09433072]
[1744941807009,0.01179092,84811.0,84807.0,0.01179147]
[1744941807427,0.01279064,84813.0,84810.0,0.09432849]
[1744941807584,0.01279064,84813.0,84811.0,0.09432737]
[1744941807797,0.24860405,84813.0,84810.0,0.09432849]
[1744941808479,0.01179092,84811.0,84808.0,0.09432985]
[1744941808692,0.24760734,84812.0,84809.0,0.094329]
[1744941809061,0.01279064,84813.0,84809.0,0.0117912]
[1744941809260,0.01279064,84813.0,84810.0,0.09432754]
[1744941809463,0.24860394,84813.0,84810.0,0.09432754]
[1744941810361,0.001,84813.0,84812.0,0.09432627]
[1744941810567,5.837e-05,84815.0,84814.0,0.09432405]
[1744941812866,5.837e-05,84815.0,84814.0,0.10307356]
[1744941818049,5.837e-05,84815.0,84814.0,0.00874951]
[1744941818262,5.837e-05,84815.0,84814.0,0.09432405]
[1744941818932,0.24765669,84815.0,84812.0,0.09432585]
[1744941820215,0.23581067,84814.0,84811.0,0.10611719]
[1744941822563,0.24760117,84814.0,84811.0,0.10611719]
[1744941822779,0.23581347,84813.0,84811.0,0.10611719]
[1744941822980,0.23581568,84812.0,84810.0,0.01279106]
[1744941823186,0.24760411,84813.0,84810.0,0.22656743]
[1744941825017,0.23586633,84815.0,84811.0,0.01179092]
[1744941825218,0.23581068,84814.0,84810.0,0.13223897]
[1744941825432,0.2358149,84813.0,84810.0,0.13223897]
[1744941825588,0.2358149,84813.0,84810.0,0.22656745]
[1744941825784,0.2358149,84813.0,84811.0,0.09432735]
[1744941826641,0.24760554,84813.0,84811.0,0.09432735]
[1744941830472,0.24760554,84813.0,84811.0,0.12432735]
[1744941831470,0.24760554,84813.0,84811.0,0.12532735]
[1744941831980,0.24760118,84814.0,84812.0,0.09432627]
[1744941832483,5.837e-05,84815.0,84813.0,0.09432516]
[1744941832712,5.837e-05,84815.0,84814.0,0.09432405]
[1744941832914,0.24757091,84825.0,84822.0,0.01178939]
[1744941833045,0.23578738,84823.0,84820.0,0.10610698]
[1744941833844,0.24757366,84824.0,84821.0,0.09431573]
[1744941834896,0.01178911,84824.0,84822.0,0.09431507]
[1744941835334,0.2357735,84828.0,84821.0,0.10610526]
[1744941835335,0.24955718,84829.0,84826.0,0.0943098]
[1744941835477,0.01378842,84829.0,84826.0,0.0943098]
[1744941835681,0.01178856,84828.0,84824.0,0.10610204]
[1744941837227,0.23577517,84827.0,84824.0,0.10610204]
[1744941840979,0.01178856,84828.0,84826.0,0.0943107]
[1744941841602,0.01178856,84828.0,84826.0,0.0953107]
[1744941841819,0.2475613,84828.0,84826.0,0.001]
[1744941842943,0.01178856,84828.0,84826.0,0.0953102]
[1744941843420,0.24955936,84829.0,84827.0,0.09430959]
[1744941844924,0.24955936,84829.0,84827.0,0.09411226]
[1744941845353,0.24955936,84829.0,84826.0,0.001]
[1744941845354,0.23577398,84827.0,84826.0,0.001]
[1744941845671,0.28187398,84827.0,84826.0,0.001]
[1744941849019,0.28187398,84827.0,84826.0,0.031]
[1744941863654,0.32687398,84827.0,84826.0,0.031]
[1744941864897,0.44632189,84827.0,84826.0,0.031]
[1744941865906,0.44732189,84827.0,84826.0,0.031]
[1744941866104,0.32831568,84812.0,84811.0,0.03]
[1744941879867,0.23583793,84804.0,84800.0,0.17273345]
[1744941880090,0.23819413,84804.0,84803.0,5.837e-05]
[1744941880670,0.23819413,84804.0,84803.0,0.02773714]
[1744941880873,0.28409413,84804.0,84803.0,0.02773714]
[1744941881077,0.28173793,84804.0,84803.0,0.02773714]
[1744941881498,0.44758584,84804.0,84803.0,0.02773714]
[1744941885577,0.44739719,84804.0,84803.0,0.02773714]
[1744941885826,0.23587409,84791.0,84790.0,0.00852592]
[1744941886034,0.23587409,84791.0,84787.0,0.00872406]
[1744941886035,0.23588243,84788.0,84787.0,0.00872406]
[1744941886232,0.23588243,84788.0,84783.0,0.13188]
[1744941886233,0.23589356,84784.0,84783.0,0.13188]
[1744941886649,0.23589356,84784.0,84783.0,0.13288]
[1744941887196,0.23589356,84784.0,84783.0,0.15977341]
[1744941887823,0.23587648,84791.0,84787.0,0.01179426]
[1744941888022,0.23587707,84790.0,84788.0,0.0452]
[1744941888785,0.23587965,84789.0,84788.0,0.0452]
[1744941889217,0.23587707,84790.0,84788.0,0.0452]
[1744941889425,7.95e-05,84804.0,84791.0,0.0117937]
[1744941889603,0.24763583,84802.0,84797.0,0.10613478]
[1744941889803,0.24763274,84803.0,84800.0,0.09433883]
[1744941890046,7.95e-05,84804.0,84800.0,0.10613128]
[1744941890223,0.24771048,84804.0,84802.0,0.09433736]
[1744941890561,7.95e-05,84804.0,84802.0,0.09433739]
[1744941890875,7.95e-05,84804.0,84803.0,0.09433628]
[1744941891063,7.95e-05,84804.0,84803.0,0.13953628]
[1744941891432,7.95e-05,84804.0,84803.0,0.14053628]
[1744941891690,7.95e-05,84804.0,84803.0,0.09533628]
[1744941894681,7.95e-05,84804.0,84803.0,0.001]
[1744941894965,0.23583793,84804.0,84803.0,0.001]
[1744941899050,0.23583793,84804.0,84803.0,0.031]
[1744941899698,0.23618525,84804.0,84803.0,0.031]
[1744941900475,0.24763479,84803.0,84800.0,0.09433934]
[1744941900701,0.24763801,84802.0,84798.0,0.10613349]
[1744941900903,0.23586018,84796.0,84795.0,0.34]
[1744941901282,0.2358574,84797.0,84795.0,0.34]
[1744941901487,0.23620472,84797.0,84795.0,0.34]
[1744941901690,0.24799759,84797.0,84793.0,0.44614065]
[1744941901891,0.235861,84796.0,84792.0,0.10614202]
[1744941902469,0.235861,84796.0,84793.0,0.07076055]
[1744941902851,0.235861,84796.0,84793.0,0.07076024]
[1744941902852,0.001,84796.0,84793.0,0.07076024]
[1744941903048,0.001,84796.0,84793.0,0.08255359]
[1744941903251,0.001,84796.0,84795.0,0.07075888]
[1744941903976,0.001,84796.0,84795.0,0.12065888]
[1744941904151,0.001,84796.0,84795.0,0.07075888]
[1744941904353,0.001,84796.0,84787.0,0.35179426]
[1744941904556,0.23588521,84787.0,84786.0,0.30461345]
[1744941904925,0.24767401,84789.0,84785.0,0.0707672]
[1744941905047,0.24767401,84789.0,84783.0,0.04757215]
[1744941905048,0.235888,84786.0,84783.0,0.04757215]
[1744941905242,0.01179426,84787.0,84783.0,0.04757215]
[1744941905243,0.01179426,84787.0,84783.0,0.08256353]
[1744941905448,0.23588243,84788.0,84784.0,0.01179467]
[1744941905901,0.23588243,84788.0,84784.0,0.08256235]
[1744941906462,0.23588534,84787.0,84784.0,0.08256235]
[1744941909218,0.23588534,84787.0,84784.0,0.01179467]
[1744941909363,0.23588856,84786.0,84784.0,0.01179467]
[1744941909566,0.23588869,84786.0,84784.0,0.01179467]
[1744941910630,0.23589078,84785.0,84783.0,0.37657538]
[1744941910982,0.23589078,84785.0,84783.0,0.44734426]
[1744941911331,0.0117944,84786.0,84783.0,0.45913907]
[1744941911560,0.24768299,84786.0,84783.0,0.45913907]
[1744941913154,0.01179412,84788.0,84784.0,0.01179467]
[1744941913383,0.01179287,84797.0,84792.0,0.01179356]
[1744941913560,0.23586852,84793.0,84791.0,0.0117937]
[1744941913722,0.24766194,84793.0,84789.0,0.01179398]
[1744941914194,0.23587211,84792.0,84789.0,0.01179398]
[1744941914372,0.24766194,84793.0,84789.0,0.01179398]
[1744941915398,0.0117937,84791.0,84787.0,0.01179426]
[1744941915604,0.23587929,84790.0,84787.0,0.01179426]
[1744941916510,0.0117937,84791.0,84788.0,0.08255884]
[1744941916710,0.24766205,84793.0,84790.0,0.01179384]
[1744941917210,0.23587179,84792.0,84790.0,0.01179384]
[1744941917596,0.2358725,84792.0,84790.0,0.01179384]
[1744941918213,0.2358725,84792.0,84787.0,0.08255816]
[1744941918631,0.2358725,84792.0,84790.0,0.01179384]
[1744941920035,0.2358725,84792.0,84789.0,0.08255782]
[1744941920186,0.23587421,84791.0,84789.0,0.08255782]
[1744941920387,0.24766791,84791.0,84787.0,0.01179426]
[1744941920620,0.23587687,84790.0,84788.0,0.07076463]
[1744941921031,0.24766791,84791.0,84788.0,0.07076463]
[1744941921640,0.01179384,84790.0,84788.0,0.07076463]
[1744941922029,0.01179384,84790.0,84787.0,0.08255916]
[1744941922245,0.01179384,84790.0,84788.0,0.07076438]
[1744941922999,0.23588508,84788.0,84784.0,0.42256211]
[1744941923201,0.24767389,84789.0,84785.0,0.42256124]
[1744941923528,0.24767389,84789.0,84786.0,0.07076603]
[1744941923708,0.23588316,84788.0,84785.0,0.42256124]
[1744941924475,0.23588316,84788.0,84785.0,0.08256124]
[1744941926223,0.23588316,84788.0,84784.0,0.24950702]
[1744941926455,0.23588316,84788.0,84785.0,0.08256124]
[1744941928538,0.24766862,84791.0,84785.0,0.08256124]
[1744941928736,0.24766718,84792.0,84789.0,0.01179398]
[1744941928937,0.24766545,84792.0,84789.0,0.01179398]
[1744941929170,0.24766545,84792.0,84789.0,0.08255713]
[1744941929678,0.23587503,84791.0,84789.0,0.08255713]
[1744941930285,0.23587503,84791.0,84788.0,0.01179412]
[1744941930484,0.23587904,84790.0,84787.0,0.42255827]
[1744941931478,0.24767288,84790.0,84787.0,0.42255827]
[1744941931712,0.24767288,84790.0,84788.0,0.01058271]
[1744941932769,0.24867288,84790.0,84788.0,0.01058271]
[1744941936443,0.24867288,84790.0,84788.0,0.08134707]
[1744941938229,0.24867288,84790.0,84788.0,0.01058271]
[1744941941393,0.24867288,84790.0,84788.0,0.08134693]
[1744941941734,0.001,84790.0,84788.0,0.08134693]
[1744941941941,0.23687733,84790.0,84788.0,0.08134693]
[1744941943417,0.001,84790.0,84788.0,0.08134693]
[1744941944178,0.001,84790.0,84788.0,0.01058271]
[1744941944386,0.23687844,84790.0,84788.0,0.01058271]
[1744941946951,0.23584841,84801.0,84788.0,0.01058271]
[1744941947153,0.0453,84810.0,84805.0,0.0707504]
[1744941947354,0.0453,84810.0,84805.0,0.09173099]
[1744941947355,0.01179106,84810.0,84805.0,0.09173099]
[1744941947559,0.24761363,84810.0,84807.0,0.08253982]
[1744941947773,0.01179022,84816.0,84809.0,0.0117912]
[1744941947972,0.24759284,84817.0,84811.0,0.08253636]
[1744941948199,0.01179008,84817.0,84811.0,0.01179092]
[1744941948395,0.0453,84821.0,84818.0,0.01178995]
[1744941948622,0.01178981,84819.0,84815.0,0.01179036]
[1744941948852,0.24758691,84819.0,84815.0,0.08253229]
[1744941949139,0.24759017,84818.0,84815.0,0.01179036]
[1744941949298,0.01178995,84818.0,84815.0,0.01179036]
[1744941949817,0.01178981,84819.0,84816.0,0.07074136]
[1744941950446,0.01178981,84819.0,84816.0,0.08253158]
[1744941951189,0.24757908,84822.0,84817.0,0.01179008]
[1744941951398,0.24757908,84822.0,84818.0,0.07073957]
[1744941951966,0.24758123,84821.0,84818.0,0.08252952]
[1744941955289,0.24758123,84821.0,84818.0,0.07073957]
[1744941955441,0.24758491,84820.0,84817.0,0.01179008]
[1744941955650,0.01178967,84820.0,84817.0,0.07074018]
[1744941955870,0.24758324,84820.0,84817.0,0.07074018]
[1744941959667,0.24758324,84820.0,84818.0,0.07073968]
[1744941960788,0.23580084,84818.0,84816.0,0.001]
[1744941960962,0.2475888,84819.0,84816.0,0.0717411]
[1744941961163,0.01178967,84820.0,84816.0,0.01279022]
[1744941961465,0.23580121,84818.0,84816.0,0.001]
[1744941961667,0.2358111,84814.0,84810.0,0.07074564]
[1744941961818,0.0467,84816.0,84814.0,0.07074303]
[1744941962018,0.01178953,84821.0,84817.0,0.01179008]
[1744941962221,0.01178967,84820.0,84814.0,0.07074303]
[1744941962445,0.01178995,84818.0,84816.0,0.07074117]
[1744941962606,0.24758923,84818.0,84815.0,0.08253242]
[1744941963012,0.01178967,84820.0,84816.0,0.0222671]
[1744941963209,0.01178981,84819.0,84816.0,0.0222671]
[1744941963465,0.23580143,84818.0,84816.0,0.01047688]
[1744941963668,0.23580178,84817.0,84816.0,0.01047688]
[1744941964036,0.23580178,84817.0,84815.0,0.01179036]
[1744941964374,0.23580178,84817.0,84816.0,0.01047363]
[1744941964721,0.23580178,84817.0,84814.0,0.08253353]
[1744941964972,0.23580178,84817.0,84816.0,0.01047688]
[1744941965151,0.23580178,84817.0,84815.0,0.01047363]
[1744941965355,0.01178981,84819.0,84814.0,0.0117905]
[1744941965536,0.23261196,84818.0,84816.0,0.01179022]
[1744941965731,0.24440191,84818.0,84815.0,0.08253256]
[1744941965936,0.24440191,84818.0,84816.0,0.0707413]
[1744941966135,0.24440191,84818.0,84815.0,0.08253256]
[1744941966361,0.24759223,84817.0,84813.0,0.0825341]
[1744941966568,0.23580694,84816.0,84813.0,0.0825341]
[1744941967475,0.24759716,84816.0,84813.0,0.0825341]
[1744941968984,0.23582124,84810.0,84807.0,0.34]
[1744941969120,0.01179078,84812.0,84809.0,0.07174655]
[1744941969655,0.01179078,84812.0,84809.0,0.0717471]
[1744941969859,0.23581525,84813.0,84809.0,0.0835383]
[1744941970223,0.0117905,84814.0,84811.0,0.07074537]
[1744941970467,0.23579668,84819.0,84812.0,0.07074445]
[1744941970733,0.23579668,84819.0,84815.0,0.07074138]
[1744941970955,0.23579622,84819.0,84816.0,0.07074078]
[1744941971136,0.01179008,84817.0,84813.0,0.07074315]
[1744941971364,0.23579874,84819.0,84816.0,0.07074114]
[1744941971545,0.29428336,84820.0,84817.0,0.07073999]
[1744941971719,0.24758697,84819.0,84816.0,0.07074136]
[1744941971921,0.2358129,84813.0,84812.0,0.34]
[1744941972245,0.23582124,84810.0,84809.0,0.001]
[1744941972991,0.23581877,84811.0,84809.0,0.001]
[1744941974414,0.23582124,84810.0,84809.0,0.001]
[1744941977945,0.23582124,84810.0,84809.0,0.01144339]
[1744941978139,0.23582124,84810.0,84809.0,0.001]
[1744941978368,0.23582124,84810.0,84809.0,0.01144339]
[1744941978644,0.23581564,84813.0,84809.0,0.01144339]
[1744941978820,0.23582124,84810.0,84809.0,0.1308913]
[1744941979039,0.23582124,84810.0,84809.0,0.001]
[1744941979436,0.28252124,84810.0,84809.0,0.001]
[1744941991011,0.33032124,84810.0,84809.0,0.001]
[1744942001639,0.01179328,84794.0,84791.0,0.1332]
[1744942002001,0.2358713,84792.0,84791.0,0.1342]
[1744942004491,0.2358713,84792.0,84791.0,0.001]
[1744942007931,0.2358713,84792.0,84791.0,0.01158041]
[1744942008793,0.23587559,84791.0,84786.0,0.1332]
[1744942008987,0.23587559,84791.0,84787.0,0.34]
[1744942009319,0.23587559,84791.0,84788.0,0.01179412]
[1744942009552,0.0117937,84791.0,84787.0,0.34]
[1744942009752,0.01179384,84790.0,84787.0,0.35179426]
[1744942010047,0.24767284,84790.0,84787.0,0.34]
[1744942011747,0.23588217,84789.0,84787.0,0.34]
[1744942013386,0.23688217,84789.0,84787.0,0.34]
[1744942014018,0.23588243,84788.0,84787.0,0.34]
[1744942014226,0.23588521,84787.0,84786.0,0.1332]
[1744942014537,0.23623253,84787.0,84786.0,0.1332]
[1744942014954,0.23589356,84784.0,84783.0,0.03628466]
[1744942015130,0.23589356,84784.0,84783.0,0.00884674]
[1744942015336,0.23589912,84782.0,84778.0,0.17273345]
[1744942015532,0.23589912,84782.0,84781.0,0.03926174]
[1744942016144,0.23589912,84782.0,84781.0,0.03934124]
[1744942016918,0.23589912,84782.0,84781.0,0.06898719]
[1744942017078,0.23589682,84783.0,84781.0,0.06898719]
[1744942017705,0.23589912,84782.0,84781.0,0.06898719]
[1744942018212,0.23589912,84782.0,84781.0,0.07780051]
[1744942021651,0.23689912,84782.0,84781.0,0.07780051]
[1744942027119,0.23724644,84782.0,84781.0,0.07780051]
[1744942027327,0.23724644,84782.0,84781.0,0.06898719]
[1744942027728,0.23724644,84782.0,84781.0,0.06014695]
[1744942036056,0.28484644,84782.0,84781.0,0.06014695]
[1744942036263,0.28449912,84782.0,84781.0,0.06014695]
[1744942037594,0.55800346,84782.0,84781.0,0.030501]
[1744942038574,0.45174703,84782.0,84781.0,0.030501]
[1744942039183,0.45174703,84782.0,84781.0,0.029501]
[1744942045894,0.23591025,84778.0,84777.0,0.0004215]
[1744942046091,0.45010548,84778.0,84777.0,0.00055656]
[1744942046345,0.44975816,84778.0,84777.0,0.00055656]
[1744942049677,0.44975816,84778.0,84745.0,0.13292]
[1744942049678,0.23593808,84768.0,84745.0,0.13292]
[1744942049908,0.45313331,84768.0,84767.0,0.00049055]
[1744942050111,0.45278599,84768.0,84767.0,0.00049055]
[1744942050410,0.45278599,84768.0,84767.0,1e-08]
[1744942051406,0.33334922,84764.0,84763.0,1e-08]
[1744942051612,0.45279713,84764.0,84763.0,1e-08]
[1744942058971,0.35539713,84764.0,84763.0,1e-08]
[1744942079863,0.23598541,84751.0,84750.0,0.00242971]
[1744942080038,0.01179941,84750.0,84747.0,0.0004216]
[1744942080247,0.23599376,84748.0,84747.0,0.00146662]
[1744942080637,0.23634108,84748.0,84747.0,0.00146662]
[1744942082273,0.23634108,84748.0,84747.0,0.02761359]
[1744942082274,0.35578899,84748.0,84747.0,0.02761359]
[1744942082482,0.35544167,84748.0,84747.0,0.00146662]
[1744942083412,0.35544167,84748.0,84747.0,0.02747559]
[1744942083613,0.40464167,84748.0,84747.0,0.00146662]
[1744942084801,0.40464167,84748.0,84747.0,0.02758437]
[1744942085002,0.40464167,84748.0,84747.0,0.00146662]
[1744942085209,0.40464167,84748.0,84747.0,0.02714165]
[1744942088128,0.23604111,84731.0,84730.0,0.00539247]
[1744942088381,0.23638843,84731.0,84724.0,8e-05]
[1744942088935,0.23638843,84731.0,84730.0,0.00794054]
[1744942089420,0.2360439,84730.0,84724.0,8e-05]
[1744942089819,0.23639122,84730.0,84724.0,8e-05]
[1744942091341,0.23639122,84730.0,84729.0,0.03231905]
[1744942091751,0.23639122,84730.0,84729.0,0.00656835]
[1744942092249,0.2360439,84730.0,84729.0,0.03311602]
[1744942092479,0.2360439,84730.0,84729.0,0.00656835]
[1744942092833,0.2360439,84730.0,84729.0,0.0145491]
[1744942092834,0.23639122,84730.0,84729.0,0.0145491]
[1744942093041,0.23639122,84730.0,84729.0,0.03218101]
[1744942096420,0.2360439,84730.0,84729.0,0.03218101]
[1744942096894,0.2360439,84730.0,84729.0,0.04016176]
[1744942097336,0.0118001,84745.0,84738.0,0.01180108]
[1744942097546,0.01180024,84744.0,84739.0,0.01180094]
[1744942097722,0.01180038,84743.0,84739.0,0.01979105]
[1744942097921,0.24781105,84742.0,84739.0,0.07879504]
[1744942098148,0.01180052,84742.0,84739.0,0.00799011]
[1744942098862,0.23601326,84741.0,84739.0,0.00799011]
[1744942103414,0.23600822,84743.0,84741.0,0.07080338]
[1744942103638,0.23601047,84742.0,84739.0,0.01180094]
[1744942103885,0.24781664,84741.0,84738.0,0.049]
[1744942104261,0.24781664,84741.0,84738.0,0.11980648]
[1744942106117,0.23601883,84739.0,84738.0,0.049]
[1744942106402,0.23602997,84735.0,84734.0,0.473]
[1744942106591,0.23602997,84735.0,84734.0,0.34]
[1744942108630,0.24781484,84741.0,84738.0,0.01180108]
[1744942108838,0.24781684,84740.0,84736.0,0.08260877]
[1744942109046,0.23602187,84738.0,84736.0,0.08260877]
[1744942109365,0.23602187,84738.0,84736.0,0.01180135]
[1744942109778,0.23602581,84737.0,84734.0,0.34]
[1744942109884,0.23602997,84735.0,84734.0,0.34]
[1744942110541,0.23602997,84735.0,84733.0,0.00614665]
[1744942110747,0.23602997,84735.0,84733.0,0.12559456]
[1744942110957,0.23603276,84734.0,84733.0,0.12559456]
[1744942113228,0.23603276,84734.0,84733.0,0.13355222]
[1744942113790,0.23603276,84734.0,84733.0,0.01410431]
[1744942114642,0.28503276,84734.0,84733.0,0.00614665]
[1744942114790,0.2360439,84730.0,84729.0,0.02703436]
[1744942115117,0.23639122,84730.0,84729.0,0.02703436]
[1744942118258,0.23739122,84730.0,84729.0,0.02703436]
[1744942121695,0.2370439,84730.0,84729.0,0.02703436]
[1744942122841,0.2370439,84730.0,84729.0,0.03505009]
[1744942123991,0.2370439,84730.0,84724.0,0.0915356]
[1744942123992,0.24785466,84728.0,84722.0,0.0118033]
[1744942124163,0.24785466,84728.0,84724.0,0.07095325]
[1744942124370,0.23605249,84727.0,84724.0,0.07095325]
[1744942124549,0.23605249,84727.0,84724.0,0.09645529]
[1744942124751,0.23605249,84727.0,84724.0,0.10825832]
[1744942125397,0.24785466,84728.0,84725.0,0.07081733]
[1744942125699,0.24785466,84728.0,84724.0,0.10825832]
[1744942126397,0.23605288,84727.0,84724.0,0.10825832]
[1744942130879,0.23605783,84725.0,84724.0,0.02563724]
[1744942131502,0.23605783,84725.0,84724.0,0.03229089]
[1744942134252,0.24785595,84727.0,84724.0,0.10310907]
[1744942134456,0.01180247,84728.0,84725.0,0.07081684]
[1744942134673,0.01180261,84727.0,84724.0,0.1149121]
[1744942134873,0.01180261,84727.0,84726.0,0.00666016]
[1744942135078,0.23605504,84726.0,84725.0,0.0066569]
[1744942135238,0.01180261,84727.0,84726.0,0.00666016]
[1744942135439,0.01180261,84727.0,84724.0,0.10825845]
[1744942135641,0.01180261,84727.0,84725.0,0.0066569]
[1744942136028,0.2478559,84727.0,84725.0,0.0066569]
[1744942136431,0.2478559,84727.0,84725.0,0.077474]
[1744942137246,0.01380247,84728.0,84725.0,0.077474]
[1744942137783,0.24985419,84728.0,84725.0,0.077474]
[1744942137979,0.002,84728.0,84726.0,0.07081579]
[1744942138222,0.24985373,84728.0,84727.0,0.00665135]
[1744942138438,0.01380247,84728.0,84727.0,0.00665135]
[1744942138817,0.24985194,84728.0,84727.0,0.00665135]
[1744942139239,0.24985194,84728.0,84725.0,0.07081712]
[1744942139396,0.23804947,84728.0,84727.0,0.0066546]
[1744942140479,0.24785647,84727.0,84724.0,0.10825811]
[1744942140914,0.24785647,84727.0,84725.0,0.07081711]
[1744942141404,0.2380498,84728.0,84725.0,0.07081711]
[1744942141675,0.002,84728.0,84727.0,0.07081567]
[1744942141880,0.002,84728.0,84726.0,0.07081644]
[1744942142022,0.01380247,84728.0,84725.0,0.08262]
[1744942142612,0.249853,84728.0,84726.0,0.07081631]
[1744942143184,0.249853,84728.0,84727.0,0.00665135]
[1744942144299,0.01380247,84728.0,84727.0,0.00665135]
[1744942144526,0.002,84728.0,84727.0,0.00665135]
[1744942144747,0.002,84728.0,84725.0,0.08261957]
[1744942144954,0.002,84728.0,84727.0,0.0066546]
[1744942145153,0.002,84728.0,84725.0,0.07081668]
[1744942145350,0.002,84728.0,84727.0,0.0066546]
[1744942145578,0.002,84728.0,84726.0,0.07746393]
[1744942145737,0.002,84728.0,84727.0,0.07746534]
[1744942146730,0.002,84728.0,84727.0,0.00664967]
[1744942147174,0.002,84728.0,84726.0,0.07081568]
[1744942147383,0.002,84728.0,84727.0,0.07745929]
[1744942152254,0.002,84728.0,84727.0,0.00664362]
[1744942153461,0.23804947,84728.0,84727.0,0.00664362]
[1744942153684,0.002,84728.0,84727.0,0.00664362]
[1744942153919,0.002,84728.0,84720.0,0.07082152]
[1744942154150,0.00213482,84728.0,84727.0,0.07745328]
[1744942154372,0.00213482,84728.0,84727.0,0.07081567]
[1744942154628,0.00213482,84728.0,84720.0,0.11944791]
[1744942154892,0.00213482,84728.0,84721.0,0.00236042]
[1744942155111,0.00213482,84728.0,84721.0,0.00899478]
[1744942155335,0.00213482,84728.0,84719.0,0.28781648]
[1744942155535,0.00213482,84728.0,84722.0,0.00553308]
[1744942155799,0.00213482,84728.0,84727.0,0.07081567]
[1744942157025,0.00213482,84728.0,84727.0,0.07635201]
[1744942157452,0.00213482,84728.0,84727.0,0.00553634]
[1744942157874,0.00213482,84728.0,84725.0,0.02634374]
[1744942158084,0.00213482,84728.0,84727.0,0.07542812]
[1744942158219,0.00213482,84728.0,84727.0,0.41081567]
[1744942158417,0.00213482,84728.0,84727.0,0.41542812]
[1744942159833,0.00213482,84728.0,84727.0,0.00461245]
[1744942160256,0.00213482,84728.0,84726.0,0.07081622]
[1744942160480,0.00213482,84728.0,84727.0,0.00461119]
[1744942170236,0.23818429,84728.0,84727.0,0.00461119]
[1744942171273,0.23818429,84728.0,84725.0,0.42261997]
[1744942171449,0.23818429,84728.0,84726.0,0.00460696]
[1744942171651,0.24018429,84728.0,84726.0,0.00460696]
[1744942173266,0.23605226,84727.0,84726.0,0.00460696]
[1744942173686,0.24018489,84728.0,84726.0,0.00460696]
[1744942175250,0.00413482,84728.0,84726.0,0.0754229]
[1744942175773,0.24018435,84728.0,84726.0,0.0754229]
[1744942177665,0.23605226,84727.0,84726.0,0.00460696]
[1744942178721,0.23605226,84727.0,84725.0,0.07081592]
[1744942179287,0.25198682,84728.0,84725.0,0.07081592]
[1744942179492,0.23605259,84727.0,84725.0,0.08261881]
[1744942180443,0.25198682,84728.0,84725.0,0.08261881]
[1744942180772,0.25198682,84728.0,84725.0,0.42261881]
[1744942180976,0.23605263,84727.0,84725.0,0.42261881]
[1744942182338,0.23605504,84726.0,84725.0,0.34]
[1744942190130,0.23605783,84725.0,84724.0,0.03177677]
[1744942190334,0.33305783,84725.0,84724.0,0.03177677]
[1744942190485,0.28388012,84717.0,84716.0,0.51346167]
[1744942190686,0.28388012,84717.0,84716.0,0.34]
[1744942190894,0.28388012,84717.0,84716.0,0.38162995]
[1744942191314,0.28588012,84717.0,84716.0,0.38162995]
[1744942192825,0.28588012,84717.0,84716.0,0.39029109]
[1744942196442,0.28570158,84717.0,84716.0,0.39029109]
[1744942198447,0.23790158,84717.0,84716.0,0.39029109]
[1744942215146,0.2478611,84725.0,84721.0,0.01180344]
[1744942215372,0.23606069,84724.0,84721.0,0.08262258]
[1744942215548,0.23606366,84723.0,84721.0,0.01180344]
[1744942215753,0.23606635,84722.0,84718.0,0.08262693]
[1744942215954,0.23606996,84721.0,84718.0,0.01180386]
[1744942216281,0.24785764,84727.0,84722.0,0.3518033]
[1744942216461,0.23605831,84725.0,84723.0,0.41081898]
[1744942216670,0.23605831,84725.0,84723.0,0.34]
[1744942217101,0.23606062,84724.0,84723.0,0.34]
[1744942218094,0.01180289,84725.0,84723.0,0.07081902]
[1744942218331,0.24785947,84726.0,84722.0,0.42262285]
[1744942218556,0.00013482,84728.0,84727.0,0.07081567]
[1744942218759,0.00013482,84728.0,84727.0,0.41081567]
[1744942220520,0.00013482,84728.0,84727.0,0.41181567]
[1744942221989,1e-08,84728.0,84727.0,0.41181567]
[1744942226785,0.24782224,84739.0,84727.0,0.41181567]
[1744942226786,0.06039968,84748.0,84743.0,0.01180038]
[1744942226980,0.01180122,84737.0,84733.0,0.07080899]
[1744942227191,0.23602847,84736.0,84733.0,0.08261241]
[1744942227498,0.24782271,84738.0,84734.0,0.08261077]
[1744942227700,4.782e-05,84739.0,84735.0,0.35180149]
[1744942227847,0.23602141,84739.0,84736.0,0.34]
[1744942228255,0.24782235,84739.0,84736.0,0.34]
[1744942228454,0.23602351,84738.0,84736.0,0.34]
[1744942228679,0.24782235,84739.0,84736.0,0.34]
[1744942228877,0.24782235,84739.0,84736.0,0.07080813]
[1744942231632,0.24782235,84739.0,84737.0,0.00913912]
[1744942231813,0.24782235,84739.0,84736.0,0.41080813]
[1744942231971,0.2360221,84738.0,84736.0,0.34]
[1744942232186,0.2360244,84737.0,84736.0,0.34]
[1744942232731,0.2360244,84737.0,84735.0,0.41080898]
[1744942233135,0.2360244,84737.0,84736.0,0.00910825]
[1744942235022,0.24782932,84736.0,84732.0,0.35180191]
[1744942235322,0.23603508,84734.0,84732.0,0.34]
[1744942235849,0.24783657,84735.0,84732.0,0.41081082]
[1744942235996,0.23603299,84734.0,84732.0,0.07081082]
[1744942236858,0.24783657,84735.0,84732.0,0.07081082]
[1744942237901,0.23603387,84734.0,84732.0,0.07081082]
[1744942239356,0.23603554,84733.0,84731.0,0.01180205]
[1744942239574,0.2478355,84734.0,84731.0,0.08261425]
[1744942240242,0.01180149,84735.0,84733.0,0.07081066]
[1744942241120,0.01180163,84734.0,84731.0,0.01180205]
[1744942241283,0.01180163,84734.0,84731.0,0.08261426]
[1744942242346,0.24783603,84734.0,84731.0,0.08261426]
[1744942242580,0.24783603,84734.0,84731.0,0.42261426]
[1744942243045,0.23603633,84733.0,84731.0,0.42261426]
[1744942244274,0.23603833,84732.0,84731.0,0.35454085]
[1744942245142,0.23603633,84733.0,84731.0,0.35454085]
[1744942248100,0.23603633,84733.0,84732.0,0.00910781]
[1744942258012,0.28383633,84733.0,84732.0,0.00910781]
[1744942258165,0.23604111,84731.0,84730.0,0.34]
[1744942258369,0.23604111,84731.0,84730.0,0.34910449]
[1744942258575,0.23604111,84731.0,84730.0,0.00910449]
[1744942259192,0.23603916,84732.0,84730.0,0.00910449]
[1744942259397,0.23604111,84731.0,84730.0,0.00910449]
[1744942260484,1.0,84738.0,84737.0,0.07080732]
[1744942260695,0.99691778,84738.0,84737.0,0.41080732]
[1744942261111,0.99691778,84738.0,84737.0,0.41993172]
[1744942262096,0.99691778,84738.0,84737.0,0.55392048]
[1744942262097,0.95317778,84738.0,84737.0,0.55392048]
[1744942262210,0.91609783,84738.0,84737.0,0.55392048]
[1744942262413,0.8889805,84738.0,84737.0,0.55392048]
[1744942262636,0.8816505,84738.0,84737.0,0.55392048]
[1744942263079,0.86422051,84738.0,84737.0,0.55392048]
[1744942264210,0.85513051,84738.0,84737.0,0.55392048]